bitfinex/quotes_ETHUSD_20251120
["timestamp","ask_amount","ask_price","bid_price","bid_amount"]
[1763644944145,0.30824919,3027.2,3026.8,6.60763842]
[1763644944352,0.88467362,3027.6,3026.8,6.60763842]
[1763644944353,0.75019617,3027.5,3026.8,6.60763842]
[1763644944769,0.71090798,3027.4,3026.8,6.60763842]
[1763644945105,0.71090798,3027.4,3026.8,3.30381921]
[1763644945223,0.04129091,3027.3,3026.8,7.06863842]
[1763644945420,0.75019889,3027.3,3026.6,3.30394868]
[1763644945616,0.75019889,3027.3,3026.8,0.461]
[1763644946051,0.75019889,3027.3,3026.8,3.30377064]
[1763644946256,0.70890798,3027.2,3026.8,6.60758985]
[1763644946454,0.70890798,3027.2,3026.8,7.06858985]
[1763644947040,0.70890798,3027.2,3026.8,6.60758985]
[1763644947221,0.70890798,3027.2,3026.5,7.55612233]
[1763644947222,0.70890798,3027.1,3026.5,3.30512958]
[1763644947427,0.70890798,3027.0,3026.5,7.07027628]
[1763644947625,0.70890798,3026.9,3026.5,7.07027628]
[1763644947824,0.70890798,3027.0,3026.5,0.001]
[1763644948024,0.171,3026.6,3026.5,0.001]
[1763644948251,0.87990798,3026.6,3026.5,0.001]
[1763644949093,2.2354816,3026.6,3026.5,0.001]
[1763644949292,1.35080798,3026.6,3026.5,0.001]
[1763644949503,2.5303728,3026.6,3026.5,0.001]
[1763644949881,5.83441033,3026.6,3026.5,0.001]
[1763644950295,2.5303728,3026.6,3026.5,0.001]
[1763644950662,1.35080798,3026.6,3026.5,0.001]
[1763644951071,0.87990798,3026.6,3026.5,0.001]
[1763644951275,0.70890798,3026.6,3026.5,0.001]
[1763644951604,0.70890798,3026.6,3026.5,0.4969]
[1763644952093,0.70890798,3026.7,3026.6,3.30403753]
[1763644952267,0.70890798,3026.8,3026.6,3.30403753]
[1763644952462,0.78640798,3026.7,3026.5,0.001]
[1763644952694,0.0047,3026.6,3026.5,0.001]
[1763644953063,1.18450798,3026.6,3026.5,0.001]
[1763644953275,2.07488653,3026.6,3026.5,0.001]
[1763644953465,1.59928653,3026.6,3026.5,0.001]
[1763644953667,1.67678653,3026.6,3026.5,0.001]
[1763644955001,1.59928653,3026.6,3026.5,0.001]
[1763644955300,0.0814,3026.6,3026.5,0.001]
[1763644955506,0.79030798,3026.6,3026.5,0.001]
[1763644956167,1.0993104,3026.6,3026.5,0.001]
[1763644957383,1.09927529,3026.6,3026.5,0.001]
[1763644958088,1.56237529,3026.6,3026.5,0.001]
[1763644959201,0.30896731,3026.6,3026.5,0.001]
[1763644959407,0.30896731,3026.6,3026.5,0.4705]
[1763644959804,0.30896731,3026.6,3026.5,0.9263]
[1763644960131,0.30896731,3026.7,3026.5,0.9263]
[1763644960304,0.30896731,3026.6,3026.5,0.001]
[1763644960506,0.30896731,3026.8,3026.5,0.001]
[1763644960706,0.30896731,3026.7,3026.5,0.001]
[1763644960901,0.30896731,3027.1,3026.6,0.4558]
[1763644961081,0.30896731,3027.0,3026.7,6.60785674]
[1763644961287,0.30896731,3026.9,3026.7,6.60785674]
[1763644961484,0.30896731,3026.8,3026.7,4.38775033]
[1763644961705,0.30896731,3027.1,3026.7,10.99560707]
[1763644961878,0.30896731,3027.0,3026.8,0.4558]
[1763644962207,0.30896731,3027.3,3026.8,0.4558]
[1763644962412,0.30896731,3027.2,3026.8,0.4558]
[1763644962587,0.30896731,3027.1,3026.8,1.60094071]
[1763644962792,0.30896731,3027.3,3026.8,1.60094071]
[1763644962986,0.30896731,3027.2,3027.1,3.30349179]
[1763644963314,0.30896731,3027.2,3026.6,7.06387506]
[1763644963613,0.30896731,3027.1,3026.6,7.06387506]
[1763644963773,0.002,3027.2,3026.6,6.60807506]
[1763644963988,0.30896731,3027.1,3026.6,6.60807506]
[1763644964218,0.35026095,3027.1,3026.6,6.60807506]
[1763644964412,0.30896731,3027.1,3026.6,6.60807506]
[1763644964608,0.30896731,3027.1,3026.6,7.06387506]
[1763644964811,0.30896731,3027.0,3026.6,7.06387506]
[1763644965019,0.30896731,3027.1,3026.6,7.06387506]
[1763644965832,0.171,3026.7,3026.5,0.001]
[1763644965995,0.002,3027.2,3026.5,0.001]
[1763644965996,0.30896731,3026.9,3026.5,6.6092934]
[1763644966191,1.02083945,3027.1,3026.6,0.4695]
[1763644966422,0.30896731,3027.0,3026.6,0.4695]
[1763644966595,0.71187214,3027.1,3026.6,0.4695]
[1763644966596,0.30896731,3026.9,3026.7,0.4558]
[1763644966795,0.30896731,3027.0,3026.7,0.4558]
[1763644967038,0.30896731,3027.1,3026.5,6.6092934]
[1763644967233,0.30896731,3027.0,3026.5,6.6092934]
[1763644967444,0.30896731,3027.1,3026.5,6.6092934]
[1763644967593,0.30896731,3027.0,3026.5,6.6092934]
[1763644967796,0.30896731,3027.1,3026.5,6.6092934]
[1763644968037,0.30896731,3027.1,3026.6,0.4558]
[1763644968344,0.31016731,3027.2,3027.1,0.4695]
[1763644968510,0.0012,3027.2,3027.1,0.4695]
[1763644968839,0.0012,3027.2,3027.1,1.1219]
[1763644969138,0.0012,3027.2,3027.1,4.42539179]
[1763644970734,0.0012,3027.2,3027.1,3.30349179]
[1763644970909,0.0012,3027.2,3027.1,3.77299179]
[1763644971107,0.0012,3027.2,3027.1,4.42539179]
[1763644972796,0.0012,3027.2,3027.1,3.77299179]
[1763644973303,0.0012,3027.2,3027.1,4.22879179]
[1763644974532,0.0012,3027.2,3027.0,6.6071971]
[1763644975035,0.0012,3027.2,3027.1,0.4695]
[1763644976238,0.0012,3027.2,3026.5,3.3051467]
[1763644976239,0.5456,3027.2,3026.5,3.3051467]
[1763644976544,0.31366731,3027.1,3026.5,7.0650934]
[1763644976700,0.0047,3027.1,3026.5,7.0650934]
[1763644977128,1.02223499,3027.2,3026.6,0.4558]
[1763644977330,0.30896731,3027.1,3026.6,1.49272401]
[1763644977534,0.0012,3027.2,3026.6,1.49272401]
[1763644978323,0.0012,3027.2,3026.6,1.03692401]
[1763644978513,0.0012,3027.2,3027.1,3.30349179]
[1763644979335,0.5465,3027.2,3026.6,3.30403753]
[1763644979534,0.30896731,3027.1,3026.5,3.30508961]
[1763644979716,0.30896731,3027.1,3026.6,0.4558]
[1763644979906,0.0012,3027.2,3026.6,0.4558]
[1763644980524,0.0012,3027.2,3026.7,6.60785674]
[1763644981010,0.0012,3027.2,3026.8,0.4558]
[1763644982514,0.4779,3027.2,3026.5,3.30511935]
[1763644982734,0.0012,3027.2,3026.5,3.30511935]
[1763644982937,0.0012,3027.2,3027.0,0.001]
[1763644983151,0.0726,3027.1,3027.0,0.001]
[1763644983524,0.0012,3027.2,3027.0,0.001]
[1763644984153,0.0012,3027.2,3027.1,0.4695]
[1763644984452,0.0012,3027.2,3027.1,0.6661]
[1763644984652,0.0012,3027.2,3027.1,3.77299179]
[1763644985558,0.0012,3027.2,3027.1,4.42539179]
[1763644986056,0.0012,3027.2,3027.1,3.30349179]
[1763644986560,0.0012,3027.2,3027.1,3.77299179]
[1763644987132,0.0012,3027.2,3027.1,4.72293083]
[1763644987351,0.0012,3027.2,3027.1,5.17873083]
[1763644988975,0.0012,3027.2,3027.1,5.20145314]
[1763644989662,0.0012,3027.2,3027.1,5.17873083]
[1763644991186,0.0012,3027.2,3027.1,5.20145314]
[1763644991403,0.0012,3027.2,3027.1,4.05683083]
[1763644991584,0.0012,3027.2,3027.1,5.21433083]
[1763644992192,0.0004,3027.2,3027.1,5.21433083]
[1763644992374,0.0004,3027.2,3027.1,3.77869179]
[1763644992764,0.0004,3027.2,3027.1,4.27089179]
[1763644993864,0.0004,3027.2,3027.0,3.30458175]
[1763644994098,0.0004,3027.2,3027.1,0.4752]
[1763644994792,0.4771,3027.2,3027.0,0.001]
[1763644994966,0.4727,3027.1,3027.0,0.001]
[1763644998588,0.5493,3027.1,3027.0,0.001]
[1763644998783,0.85867274,3027.1,3027.0,0.001]
[1763644999365,0.78207274,3027.1,3027.0,0.001]
[1763644999702,0.30937274,3027.1,3027.0,0.4762]
[1763644999866,0.0004,3027.2,3027.0,0.4762]
[1763645000195,0.30977274,3027.2,3027.1,3.30349179]
[1763645000394,0.075,3027.2,3027.0,3.3045525]
[1763645000582,0.30977274,3027.2,3027.0,3.3045525]
[1763645000895,0.0004,3027.2,3027.0,6.60815342]
[1763645001196,0.0004,3027.2,3027.0,3.3045525]
[1763645001393,0.0746,3027.1,3027.0,3.3045525]
[1763645001597,0.38397274,3027.1,3027.0,3.3045525]
[1763645001965,0.85467274,3027.1,3027.0,0.001]
[1763645002999,5.06515717,3027.1,3027.0,0.001]
[1763645003173,36.1835521,3027.1,3027.0,0.001]
[1763645003380,18.88992674,3027.1,3027.0,0.001]
[1763645003583,1.31249664,3026.8,3026.7,0.001]
[1763645003788,1.19606367,3026.8,3026.7,0.001]
[1763645004021,1.66676367,3026.8,3026.7,0.001]
[1763645004216,5.87757552,3026.8,3026.7,0.001]
[1763645004519,1.31249664,3026.7,3026.6,0.001]
[1763645004685,2.88406031,3026.7,3026.6,0.001]
[1763645005548,2.47855631,3026.7,3026.6,0.001]
[1763645006160,5.78248468,3026.7,3026.6,0.001]
[1763645006949,6.18798868,3026.7,3026.6,0.001]
[1763645008053,6.18734978,3026.7,3026.6,0.001]
[1763645010316,6.18734978,3026.7,3026.3,0.001]
[1763645010317,1.31249664,3026.4,3026.3,0.001]
[1763645010516,14.70492648,3026.4,3026.3,0.001]
[1763645010817,15.11962329,3026.4,3026.3,0.001]
[1763645011265,16.55472329,3026.4,3026.3,0.001]
[1763645011617,16.21702029,3026.4,3026.3,0.001]
[1763645011824,16.00756529,3026.4,3026.3,0.001]
[1763645012020,9.94557729,3026.4,3026.3,0.001]
[1763645012224,6.11357729,3026.4,3026.3,0.001]
[1763645012560,10.36588048,3026.4,3026.3,0.001]
[1763645012744,0.405504,3026.0,3024.6,3.49315464]
[1763645012964,1.31249664,3025.6,3024.4,3.30642246]
[1763645013163,1.31249664,3025.6,3024.3,3.49345365]
[1763645013164,12.666685,3025.3,3024.3,3.49350823]
[1763645013364,0.30873384,3025.2,3024.3,6.8000585]
[1763645013568,8.358275,3025.2,3024.3,3.49350823]
[1763645013742,8.358275,3025.2,3024.3,6.8000585]
[1763645013743,0.456,3025.1,3024.3,6.8000585]
[1763645014085,0.456,3025.1,3024.3,3.49350823]
[1763645014462,0.456,3025.1,3024.3,6.8000585]
[1763645014666,0.456,3025.1,3024.3,0.187]
[1763645014872,0.456,3025.1,3024.3,6.80008114]
[1763645015083,1.50239264,3025.9,3025.0,0.4731]
[1763645015252,0.093,3024.4,3024.3,0.72843811]
[1763645015463,12.708123,3024.3,3022.2,2.36412324]
[1763645015659,0.4515,3023.7,3022.2,3.61327522]
[1763645015846,1.42549664,3023.6,3022.3,0.4933]
[1763645016172,0.90619264,3023.1,3021.6,0.4933]
[1763645016387,7.359995,3022.8,3021.6,0.4933]
[1763645016546,7.359995,3022.8,3021.2,3.30992934]
[1763645016547,7.359995,3022.8,3021.2,3.8031674]
[1763645016741,0.405504,3022.4,3021.1,0.187]
[1763645016975,0.405504,3022.0,3020.5,0.187]
[1763645017177,0.405504,3022.0,3020.0,0.187]
[1763645017178,0.405504,3021.8,3020.0,0.187]
[1763645017364,0.405504,3021.8,3020.1,0.4933]
[1763645017365,0.518504,3021.7,3020.1,0.4933]
[1763645017674,0.456,3021.7,3020.2,6.622078]
[1763645017876,0.518504,3021.6,3020.2,6.622078]
[1763645018046,0.518504,3021.6,3020.3,0.4933]
[1763645018243,0.4758,3021.5,3020.3,0.4933]
[1763645018475,0.19012966,3021.4,3020.3,0.4933]
[1763645018845,0.66592966,3021.4,3020.3,0.4933]
[1763645019048,3.97995447,3023.5,3020.3,0.4933]
[1763645019049,0.1291,3021.9,3021.3,0.6646]
[1763645019248,0.1291,3021.9,3021.0,0.1822]
[1763645019443,0.6049,3021.9,3021.0,0.1822]
[1763645019684,1.31249664,3021.8,3021.1,0.001]
[1763645019885,0.405504,3021.6,3021.1,0.001]
[1763645020190,0.479004,3021.2,3021.1,0.001]
[1763645020403,19.67131164,3021.2,3021.1,0.001]
[1763645020721,19.67131164,3021.2,3020.5,0.001]
[1763645020722,21.79236164,3020.6,3020.5,0.001]
[1763645020872,21.14083564,3020.6,3020.5,0.001]
[1763645021187,21.78673564,3020.6,3020.5,0.001]
[1763645021387,18.982021,3020.6,3020.5,0.001]
[1763645021589,5.78925764,3020.6,3020.5,0.001]
[1763645021801,4.60521264,3020.6,3020.5,0.001]
[1763645022295,7.91581318,3020.6,3020.5,0.001]
[1763645022690,4.60521264,3020.6,3020.5,0.001]
[1763645022868,2.07139664,3020.6,3020.5,0.001]
[1763645023068,1.39109264,3020.6,3020.5,0.001]
[1763645023304,0.90699264,3020.6,3020.5,0.001]
[1763645023673,1.45229264,3020.6,3020.5,0.001]
[1763645023871,1.6186919,3020.6,3020.5,0.001]
[1763645024707,29.01319744,3020.6,3020.5,0.001]
[1763645024881,28.97313486,3020.6,3020.5,0.001]
[1763645025207,1.31249664,3020.3,3017.8,0.4944]
[1763645025409,30.0,3020.4,3017.4,0.4944]
[1763645025410,1.31249664,3019.0,3017.4,0.4944]
[1763645025610,1.31249664,3019.0,3016.9,0.1822]
[1763645025611,0.113,3018.9,3017.8,3.80800262]
[1763645025905,0.90699264,3018.7,3017.9,6.80929]
[1763645026072,0.237,3018.9,3017.9,7.30369]
[1763645026271,0.237,3018.9,3018.0,0.4944]
[1763645026473,0.237,3018.9,3018.1,0.1822]
[1763645026681,0.124,3018.9,3018.1,0.1822]
[1763645026909,0.124,3018.9,3018.1,0.6766]
[1763645027205,0.124,3018.9,3017.9,6.80929]
[1763645027206,0.124,3018.9,3017.8,0.1822]
[1763645027428,0.124,3019.6,3018.1,0.1822]
[1763645027584,0.113,3019.4,3018.1,0.1822]
[1763645027781,0.113,3019.4,3018.3,6.62624656]
[1763645027993,0.113,3019.4,3018.4,0.4944]
[1763645029534,0.113,3019.4,3018.3,6.62624656]
[1763645029678,0.113,3019.4,3017.7,3.31373139]
[1763645029679,0.4758,3019.3,3018.1,0.1822]
[1763645029880,0.4758,3019.3,3018.2,3.80763305]
[1763645030187,0.113,3019.4,3018.2,10.43409915]
[1763645030385,0.113,3019.4,3018.3,1.55602991]
[1763645030609,1.31249664,3019.6,3018.3,1.55602991]
[1763645030914,1.01999264,3019.7,3018.4,0.4944]
[1763645031413,0.99477411,3020.9,3019.6,0.6646]
[1763645031642,0.99477411,3020.9,3019.7,0.4824]
[1763645031790,0.0987,3020.9,3019.8,3.31147758]
[1763645031994,3.88480088,3020.9,3019.7,3.80596323]
[1763645032310,0.38848009,3020.8,3019.7,3.80596323]
[1763645032515,0.38848009,3020.8,3019.8,0.4944]
[1763645032814,0.0987,3020.9,3019.8,0.4944]
[1763645034011,0.238,3021.5,3019.9,13.24547168]
[1763645034212,2.48166,3021.4,3019.9,13.24547168]
[1763645034435,0.238,3021.5,3020.0,0.4944]
[1763645034710,0.124,3021.5,3020.0,0.4944]
[1763645034898,0.124,3021.5,3020.1,1.37398717]
[1763645035440,0.114,3021.6,3020.2,0.4944]
[1763645035920,0.6049,3022.2,3020.3,13.24371748]
[1763645036100,0.6049,3022.2,3020.4,0.4944]
[1763645036101,10.890625,3021.7,3020.4,0.4944]
[1763645036305,3.69935,3021.5,3020.4,0.4944]
[1763645036494,0.04137154,3021.4,3020.4,0.4944]
[1763645036694,2.80335,3021.3,3020.3,3.49312937]
[1763645036890,0.04137428,3021.2,3020.3,6.80405874]
[1763645037218,0.04137428,3021.2,3020.3,7.29845874]
[1763645037420,2.80335,3021.1,3020.1,0.1822]
[1763645037605,4.506898,3020.9,3020.1,0.1822]
[1763645037784,0.04137976,3020.8,3020.1,0.1822]
[1763645037981,3.35178067,3020.8,3019.6,0.1822]
[1763645038204,0.4758,3020.7,3019.6,0.1822]
[1763645038520,0.0413825,3020.6,3019.7,6.62317448]
[1763645038821,0.405504,3020.5,3019.6,3.49489579]
[1763645039237,0.405504,3020.5,3019.6,0.1832]
[1763645039435,0.405504,3020.4,3019.6,0.001]
[1763645039608,0.124,3019.7,3019.6,0.001]
[1763645039933,0.90699264,3019.9,3019.6,0.001]
[1763645040121,0.2372,3020.0,3019.6,0.001]
[1763645040736,0.114,3020.0,3019.6,0.001]
[1763645040894,0.114,3020.0,3019.6,0.4954]
[1763645041095,0.114,3020.0,3019.6,0.001]
[1763645041096,0.1967,3019.7,3019.6,0.001]
[1763645041309,0.114,3020.0,3019.6,0.001]
[1763645041509,0.16459209,3019.9,3019.6,0.001]
[1763645041800,0.114,3020.0,3019.6,0.001]
[1763645042198,0.114,3020.0,3019.7,0.4944]
[1763645042701,0.69875013,3020.5,3019.7,0.4944]
[1763645042927,2.03035,3020.3,3019.6,0.001]
[1763645043132,0.74307612,3020.2,3019.6,0.001]
[1763645043301,0.04138798,3020.2,3019.6,0.001]
[1763645044001,0.04138935,3020.1,3019.6,0.001]
[1763645044421,0.04138935,3020.1,3019.6,0.4954]
[1763645044740,0.70168814,3020.2,3020.0,0.4824]
[1763645044955,1.56779617,3020.4,3020.1,0.6646]
[1763645045144,0.86610803,3020.2,3020.1,0.6646]
[1763645045345,1.87425955,3020.2,3020.1,0.6646]
[1763645045924,1.87425955,3020.2,3020.1,3.97574863]
[1763645046228,2.18771634,3020.2,3020.1,3.97574863]
[1763645046539,1.00815152,3020.2,3020.1,5.1988491]
[1763645046709,1.89164002,3020.2,3020.1,4.47014863]
[1763645046908,1.89164002,3020.2,3020.1,3.97574863]
[1763645047142,1.00815152,3020.2,3020.1,3.31114863]
[1763645047444,1.00815152,3020.2,3020.0,3.31120773]
[1763645047630,1.00815152,3020.1,3019.7,3.31158724]
[1763645047950,1.00815152,3020.0,3019.7,7.28559326]
[1763645048245,0.88358599,3020.5,3020.0,0.6494]
[1763645048451,1.01400201,3020.4,3020.1,0.4803]
[1763645048616,0.70712234,3020.3,3020.1,0.4803]
[1763645048811,0.70712234,3020.2,3020.1,0.4803]
[1763645049149,0.88358599,3021.0,3020.1,0.944]
[1763645049364,1.01430016,3020.9,3020.1,0.4803]
[1763645049534,1.01430016,3020.8,3020.2,0.4803]
[1763645049861,0.88358599,3021.1,3020.2,0.4803]
[1763645049862,0.70740599,3021.0,3020.2,0.4803]
[1763645050050,1.01442734,3020.9,3020.3,13.24371748]
[1763645050250,1.01436191,3020.8,3020.4,1.37240175]
[1763645050439,0.70740599,3020.7,3020.3,7.10215874]
[1763645050640,1.59099198,3021.0,3020.3,7.10215874]
[1763645050831,1.59099198,3021.0,3020.3,3.79122937]
[1763645050832,1.05572639,3020.9,3020.3,3.79122937]
[1763645051164,0.88358599,3020.7,3020.1,6.62229726]
[1763645051370,1.014348,3020.8,3020.1,6.62229726]
[1763645051371,1.89793399,3020.6,3020.1,6.62229726]
[1763645051569,0.0987,3020.9,3020.1,6.62229726]
[1763645051570,1.89793399,3020.5,3020.1,6.62229726]
[1763645051869,1.014348,3020.4,3020.1,6.62229726]
[1763645052163,1.014348,3020.3,3020.1,6.62229726]
[1763645052366,0.0987,3020.9,3020.1,6.62229726]
[1763645052367,1.014348,3020.2,3020.1,3.31114863]
[1763645052660,0.70740599,3020.4,3020.1,6.62229726]
[1763645052863,1.01419024,3020.3,3020.1,8.09792237]
[1763645053068,0.70740599,3020.7,3020.2,0.4803]
[1763645053366,1.01367627,3020.6,3020.2,0.4803]
[1763645053544,0.70686209,3020.8,3020.2,0.4803]
[1763645053746,1.01355823,3020.7,3020.5,0.4637]
[1763645053948,0.70686209,3020.9,3020.5,0.4637]
[1763645054149,0.30669635,3020.8,3020.6,7.10150108]
[1763645054353,0.70686209,3021.0,3020.8,0.4637]
[1763645054668,0.70686209,3021.1,3020.7,0.4803]
[1763645054868,1.01359726,3021.0,3020.9,0.4637]
[1763645055068,0.30673517,3021.0,3020.9,0.4637]
[1763645055374,1.01359726,3021.1,3020.3,0.4803]
[1763645055572,1.01359726,3021.0,3020.2,10.413417]
[1763645055763,1.01359726,3020.9,3020.3,0.4803]
[1763645055966,1.01359726,3020.8,3020.3,0.4803]
[1763645056165,1.01359726,3020.7,3020.4,6.6216395]
[1763645056472,1.01359726,3020.6,3020.4,6.6216395]
[1763645056663,0.88358599,3020.8,3020.4,3.79111975]
[1763645056664,1.01359726,3020.5,3020.4,3.79111975]
[1763645056858,0.30673517,3020.5,3020.4,3.83432]
[1763645057038,1.01405859,3020.6,3020.4,7.0853395]
[1763645057235,1.01407603,3020.5,3020.4,3.77451975]
[1763645057461,1.01407603,3020.5,3020.4,3.31081975]
[1763645057858,1.01407603,3020.5,3020.4,4.25481975]
[1763645058838,0.002,3021.0,3020.4,10.87645925]
[1763645059149,0.002,3021.0,3020.4,6.6216395]
[1763645059150,1.01645878,3020.9,3020.4,6.6216395]
[1763645059348,1.01645878,3020.8,3020.4,9.93245925]
[1763645059549,1.01645878,3020.7,3020.5,0.4803]
[1763645059756,1.01645878,3020.6,3020.4,6.5540495]
[1763645059955,1.01645878,3020.5,3020.4,3.24322975]
[1763645060158,0.70876242,3020.5,3020.4,4.27777643]
[1763645060480,1.0177035,3020.5,3020.4,4.74147643]
[1763645060779,0.88358599,3020.9,3020.4,11.84341593]
[1763645060969,0.88558599,3021.0,3020.8,0.4637]
[1763645061280,0.88558599,3021.0,3020.9,0.4637]
[1763645061281,0.002,3021.0,3020.9,0.4637]
[1763645061488,1.02044416,3021.0,3020.9,0.4637]
[1763645061644,1.02044416,3021.0,3020.9,0.944]
[1763645061864,1.02044416,3021.0,3020.9,1.12909926]
[1763645061865,0.002,3021.0,3020.9,1.12909926]
[1763645062593,0.002,3021.0,3020.9,5.34636367]
[1763645063162,0.002,3021.0,3020.9,5.75186767]
[1763645064304,0.0012,3021.0,3020.9,5.75186767]
[1763645064612,0.0012,3021.0,3020.9,5.34636367]
[1763645065861,0.0012,3021.0,3020.9,4.25427177]
[1763645066688,0.0012,3021.0,3020.9,3.77397177]
[1763645066887,0.0012,3021.0,3020.3,0.90699264]
[1763645066888,0.0012,3021.0,3020.7,3.31049094]
[1763645067086,0.0012,3021.0,3020.7,6.62098188]
[1763645067503,0.0012,3021.0,3020.7,3.31049094]
[1763645067688,0.0012,3021.0,3020.7,6.62098188]
[1763645067863,0.0012,3021.0,3020.9,0.4637]
[1763645068700,0.0012,3021.0,3020.9,3.77397177]
[1763645069101,0.0012,3021.0,3020.9,4.26077177]
[1763645070418,0.0012,3021.0,3020.9,3.77397177]
[1763645070719,0.0012,3021.0,3020.9,3.31027177]
[1763645070916,0.0012,3021.0,3020.6,6.62117019]
[1763645071120,0.0012,3021.0,3020.6,10.41857073]
[1763645071503,0.0012,3021.0,3020.6,7.10797019]
[1763645071822,0.06769,3020.7,3020.6,3.79736965]
[1763645072199,0.06769,3020.7,3020.6,4.24896965]
[1763645072398,0.06769,3020.7,3020.6,3.76216965]
[1763645072593,0.06769,3020.7,3020.6,3.31056965]
[1763645072816,0.06769,3020.7,3020.4,6.6216395]
[1763645074820,0.06769,3020.7,3020.1,9.93339526]
[1763645075603,0.06769,3020.7,3020.6,0.4516]
[1763645075804,0.06769,3020.7,3020.6,0.96130003]
[1763645076120,0.06769,3020.7,3020.6,1.36680403]
[1763645076728,0.06769,3020.7,3020.6,1.343904]
[1763645077029,0.06769,3020.7,3020.6,5.15599318]
[1763645077198,0.06769,3020.7,3020.6,5.87050682]
[1763645079900,0.06769,3020.7,3020.6,5.89340685]
[1763645080197,0.06769,3020.7,3020.6,5.87050682]
[1763645081036,0.06769,3020.7,3020.6,3.31060054]
[1763645082896,0.06769,3020.7,3020.4,0.001]
[1763645083095,0.06769,3020.7,3020.6,0.4969]
[1763645083296,0.06769,3020.7,3020.4,0.001]
[1763645083694,0.06769,3020.7,3020.6,0.4969]
[1763645084374,0.06769,3020.7,3020.6,0.974]
[1763645086932,0.06769,3020.7,3020.6,3.31060054]
[1763645087640,0.06769,3020.7,3020.5,7.10070658]
[1763645087641,0.06769,3020.7,3020.5,3.79]
[1763645087933,0.0047,3020.6,3020.5,3.31069341]
[1763645088151,0.0039,3020.6,3020.5,3.31069341]
[1763645088527,0.06769,3020.7,3020.5,6.62140355]
[1763645088723,0.06769,3020.7,3020.5,3.31069341]
[1763645089246,0.06769,3020.7,3020.4,0.001]
[1763645089455,0.0727,3020.6,3020.4,0.001]
[1763645090034,0.06769,3020.7,3020.4,0.001]
[1763645090559,0.0727,3020.5,3020.4,0.001]
[1763645090940,0.5429,3020.5,3020.4,0.001]
[1763645091145,0.0727,3020.5,3020.4,0.001]
[1763645092335,0.3084015,3020.6,3020.4,0.001]
[1763645092547,0.06769,3020.7,3020.4,0.001]
[1763645095160,0.0727,3020.5,3020.4,0.001]
[1763645095765,26.878463,3019.7,3018.3,2.36893112]
[1763645096081,26.878463,3019.7,3018.1,0.1811]
[1763645096082,0.88358599,3019.3,3018.1,0.1811]
[1763645096264,0.30843723,3019.2,3018.1,0.1811]
[1763645096576,0.78263723,3019.2,3018.1,0.1811]
[1763645096776,0.78263723,3019.2,3018.1,0.6582]
[1763645096982,0.78263723,3019.2,3018.2,0.4771]
[1763645097347,0.78263723,3019.2,3018.3,6.62624656]
[1763645097552,0.30843723,3019.2,3018.3,10.99913975]
[1763645097751,0.43083723,3019.8,3019.1,0.678]
[1763645097970,0.1224,3019.8,3019.1,0.678]
[1763645099685,0.1224,3019.8,3019.2,3.31213566]
[1763645099885,0.5966,3019.8,3019.2,3.31213566]
[1763645100254,0.075,3019.3,3019.0,3.31235508]
[1763645100459,0.075,3019.3,3019.0,6.62471016]
[1763645100880,0.1224,3019.8,3019.0,6.62471016]
[1763645101080,0.1224,3019.8,3019.1,0.1811]
[1763645101281,0.1224,3019.9,3019.1,0.6582]
[1763645101467,0.4742,3020.3,3019.1,1.38649102]
[1763645101668,0.30672475,3020.4,3019.2,10.41350698]
[1763645101873,1.32771739,3020.5,3019.3,0.4771]
[1763645102077,0.30672475,3020.4,3019.3,0.4771]
[1763645102690,0.114,3020.5,3019.3,0.4771]
[1763645102986,0.42072475,3020.5,3019.3,0.4771]
[1763645103193,0.30872475,3020.6,3019.5,6.16454623]
[1763645103377,0.002,3020.6,3019.6,1.40701214]
[1763645103555,0.002,3020.6,3020.5,3.49181014]
[1763645103960,0.002,3020.6,3020.5,3.31071014]
[1763645104477,0.077,3020.6,3020.0,0.1811]
[1763645104672,0.4702,3020.5,3019.8,6.62295516]
[1763645105387,0.4702,3020.5,3019.8,9.93443274]
[1763645105555,0.4702,3020.5,3019.8,6.62295516]
[1763645105756,0.1967,3019.9,3019.3,0.90699264]
[1763645105991,0.0047,3019.8,3019.1,0.1811]
[1763645106262,0.90699264,3020.3,3019.1,0.1811]
[1763645106263,0.30665166,3020.2,3019.1,0.1811]
[1763645106456,1.18274686,3020.6,3019.2,0.4771]
[1763645106714,0.002,3020.6,3019.2,0.4771]
[1763645107061,1.21578185,3020.6,3019.2,0.4771]
[1763645107294,0.90899264,3020.6,3019.2,0.4771]
[1763645107684,0.4742,3020.5,3019.3,9.93607788]
[1763645107865,0.90899264,3020.6,3019.3,9.93607788]
[1763645108068,0.002,3020.6,3019.4,0.4771]
[1763645108467,1.73148064,3020.6,3019.4,0.4771]
[1763645108684,1.42457514,3020.6,3019.4,0.4771]
[1763645108904,0.4742,3020.5,3019.4,0.4771]
[1763645109260,0.04138524,3020.4,3019.4,0.4771]
[1763645109463,0.90899264,3020.6,3019.4,0.4771]
[1763645109464,0.002,3020.6,3019.4,0.4771]
[1763645109769,0.002,3020.6,3019.5,9.95834102]
[1763645109980,0.002,3020.6,3019.6,0.4657]
[1763645110190,0.002,3020.6,3019.7,0.02291775]
[1763645110374,0.002,3020.6,3019.8,0.4657]
[1763645111664,0.002,3020.6,3019.9,6.62273584]
[1763645112006,0.002,3020.6,3019.9,9.93410376]
[1763645112294,0.0012,3020.6,3019.9,10.39980376]
[1763645112863,0.0012,3020.6,3019.9,7.08843584]
[1763645113416,0.0012,3020.6,3019.9,10.39980376]
[1763645113560,0.0012,3020.6,3019.9,7.08843584]
[1763645115286,0.37398181,3020.6,3019.9,7.08843584]
[1763645115481,0.0012,3020.6,3019.9,7.08843584]
[1763645115907,0.0425825,3020.6,3019.7,6.62317448]
[1763645116406,0.0012,3020.6,3019.8,0.4657]
[1763645117610,0.0012,3020.6,3019.2,3.31213566]
[1763645117611,0.1969,3019.9,3019.2,3.31213566]
[1763645117807,0.0012,3019.8,3019.1,3.31319762]
[1763645118010,0.0012,3019.8,3019.1,0.001]